Cogmind - Beta 16.1 @@@ ROGUE MODE // 2026.04.01 @ 11:06:57 Player: Rainbow Dash Result: Destroyed by R9-EYN(R) with Subdweller Shrapnel Launcher Performance ------------- Evolutions (0) 0 Regions Visited (3) 600 Robots Destroyed (30) 150 Value Destroyed (525) 525 Prototype IDs (2) 40 Alien Tech Used (0) 0 Bonus (0) 0 TOTAL SCORE: 1315 Bonus ------- None Cogmind --------- Core Integrity 0/250 Matter 205/300 Energy 74/250 System Corruption 0% Temperature Cool (0) Movement Rolling (130) Ox2 Location -10/Subcaves Parts ------- > --- POWER (1) -------- Ion Engine > --- PROPULSION (2) --- Subdweller Monowheel Subdweller Monowheel > --- UTILITY (2) ------ High-capacity Storage Unit Makeshift Light Armor Plating > --- WEAPON (2) ------- Medium Laser Battle Cannon > --- INVENTORY (20) --- Ion Engine Subdweller Power Source Subdweller Power Source Structural Scanner Subdweller Optics Subdweller Optics Signal Interpreter Small Laser Subdweller Beam Cannon Light Assault Rifle Light Assault Rifle Light Assault Rifle Grenade Launcher Flamer Shrapnel Trap Scrap Shield Fragment (43) Peak State ------------ > --- POWER ------------ Ion Engine > --- PROPULSION ------- Subdweller Monowheel Subdweller Monowheel > --- UTILITY ---------- High-capacity Storage Unit Makeshift Light Armor Plating > --- WEAPON ----------- Medium Laser Battle Cannon > --- INVENTORY -------- Ion Engine Subdweller Power Source Subdweller Power Source Structural Scanner Subdweller Optics Subdweller Optics Signal Interpreter Small Laser Subdweller Beam Cannon Light Assault Rifle Light Assault Rifle Light Assault Rifle Grenade Launcher Flamer Shrapnel Trap Scrap Shield Fragment [Rating: 15] Favorites ----------- Power Light Ion Engine Engine Light Ion Engine Propulsion Improved Treads Treads Improved Treads Wheel Subdweller Monowheel Utility Improved Targeting Computer Storage High-capacity Storage Unit Processor Improved Targeting Computer Protection Makeshift Light Armor Plating Weapon Light Assault Rifle Energy Gun Medium Laser Ballistic Gun Light Assault Rifle Ballistic Cannon Battle Cannon Launcher Grenade Launcher Build | -11 -10 -10 -10 ------- Run | Yrd Mat Min Sub Slots Evolved . | . . . . Power . | . . . . Propulsion . | . . . . Utility . | . . . . Weapon . | . . . . Parts Attached 22 | 6 6 2 8 Power 3 | 1 1 . 1 Engine 3 | 1 1 . 1 Core . | . . . . Reactor . | . . . . Propulsion 9 | 2 2 1 4 Treads 6 | 2 2 1 1 Leg . | . . . . Wheel 3 | . . . 3 Hover . | . . . . Flight . | . . . . Utility 4 | 1 2 . 1 Device . | . . . . Storage 2 | 1 1 . . Processor 1 | . 1 . . Hackware . | . . . . Protection 1 | . . . 1 Artifact . | . . . . Weapon 6 | 2 1 1 2 Energy Gun 1 | . . . 1 Energy Cannon . | . . . . Ballistic Gun 3 | 2 . 1 . Ballistic Cannon 1 | . . . 1 Launcher 1 | . 1 . . Special Weapon . | . . . . Impact Weapon . | . . . . Slashing Weapon . | . . . . Piercing Weapon . | . . . . Special Melee Weapon . | . . . . Unidentified Prototypes . | . . . . Parts Lost 7 | . . 2 5 Power 1 | . . . 1 Propulsion 4 | . . 1 3 Utility . | . . . . Weapon 2 | . . 1 1 Highest Loss Streak 3 | . . 2 3 To Critical Strikes . | . . . . Average Backups 13 | 2 8 14 17 Power 2 | . 1 2 3 Propulsion 2 | . 4 3 1 Utility 2 | . . 1 3 Weapon 6 | . 2 7 8 Tool/Special . | . . . . Unused Backups 17 | 1 1 . 15 Power 4 | . 1 . 3 Propulsion 1 | 1 . . . Utility 4 | . . . 4 Weapon 8 | . . . 8 Tool/Special . | . . . . Average Slot Usage (%) 99 | . 98 100 99 Engine 14 | . 14 14 14 Treads 15 | . 28 28 9 Wheel 12 | . . . 18 Storage 14 | . 14 14 14 Processor 13 | . 12 14 13 Ballistic Gun 22 | . 27 25 20 Ballistic Cannon 4 | . . . 7 Peak Build Rating 15 | 6 11 11 15 Average Rating 11 | 5 10 10 12 On Entrance 7 | . 6 11 11 Avg Prop Armor Cover (%) 5 | . . . 5 Naked Turns . | . . . . Heaviest Build 47 | 10 47 47 47 Greatest Support 46 | 40 46 46 46 Greatest Overweight (x) 2 | 2 1 1 2 Average Overweight (x) 1 | . . . 1 Largest Inventory Capacity 20 | 8 20 20 20 Average Capacity 17 | 7 13 20 20 Most Carried 20 | 4 13 15 20 Average Carried 14 | 2 8 14 18 Final Capacity 20 | 8 20 20 20 Final Carried 16 | 3 13 15 16 Class Distribution -------------------- 100% | Mutant Dominant Class ---------------- Mutant | -10/Materials Mutant | -10/Mines Mutant | -10/Subcaves Resources | -11 -10 -10 -10 ----------- Run | Yrd Mat Min Sub Matter Collected 715 | 231 227 29 228 Remotely . | . . . . Salvage Created 591 | 12 353 32 194 Parts 50 | 3 34 7 6 Haulers Intercepted 1 | . 1 . . Recyclers Shooed . | . . . . Parts Field Recycled . | . . . . Retrieved Matter . | . . . . Parts Self-Destructed 9 | . . . 9 Prevented . | . . . . Parts Restored . | . . . . Kills | -11 -10 -10 -10 ------- Run | Yrd Mat Min Sub Combat Hostiles Destroyed 25 | . 14 5 6 Guns 8 | . 5 . 3 Cannons 3 | . . . 3 AOE 14 | . 9 5 . Classes Destroyed 7 | 1 5 . 1 Tunneler 1 | 1 . . . Hauler 1 | . 1 . . Recycler 1 | . 1 . . Watcher 2 | . 2 . . Swarmer 17 | . 12 5 . Grunt 2 | . 2 . . Subdweller 6 | . . . 6 Best Kill Streak 6 | 1 6 3 2 Combat Bots Only 6 | . 6 3 2 Max Kills in Single Turn 4 | 1 4 3 1 Gunslinging 1 | . 1 . . Exploded 4 | . 4 3 . Melee . | . . . . Uniques/NPCs Destroyed . | . . . . Combat | -11 -10 -10 -10 -------- Run | Yrd Mat Min Sub Hostile Shots Fired 96 | . 30 9 57 Missed 30 | . 8 2 20 Hits 66 | . 22 7 37 Projectile 66 | . 22 7 37 AOE 4 | . . . 4 Critical Strikes 1 | . . . 1 Damage Taken 1412 | . 186 126 1100 Core 271 | . 20 16 235 Absorbed by Shields . | . . . . Core Remaining (%) 100 | 100 . . . Volleys Fired 91 | 6 32 3 50 Largest 2 | 2 2 2 2 Hottest 83 | 40 40 50 83 Shots Fired 170 | 12 60 4 94 Gun 136 | 12 56 1 67 Cannon 27 | . . . 27 Launcher 7 | . 4 3 . Special . | . . . . Kinetic 161 | 12 56 1 92 Thermal 2 | . . . 2 Explosive 7 | . 4 3 . Electromagnetic . | . . . . Robot Hit Streak 30 | 5 16 7 30 Robot Miss Streak 3 | 1 3 . 2 Penetration Max . | . . . . Secondary Targets 1 | . 1 . . Max Gunslinging Chain 1 | . 1 . . Shots Hit Robots 122 | 9 38 2 73 Core Hits 48 | 3 24 4 17 Critical Kills . | . . . . Critical Parts Destroyed 1 | . . . 1 Critical Strikes 1 | . . . 1 Destroy 1 | . . . 1 Melee Attacks . | . . . . Impact . | . . . . Slashing . | . . . . Piercing . | . . . . Sneak Attacks . | . . . . Combat Hostiles . | . . . . Follow-up Attacks . | . . . . Damage Inflicted 2038 | 69 818 336 815 Guns 864 | 69 284 8 503 Cannons 312 | . . . 312 Explosions 856 | . 532 324 . Melee . | . . . . Ramming 6 | . 2 4 . Kinetic 1151 | 69 284 8 790 Thermal 25 | . . . 25 Explosive 856 | . 532 324 . Electromagnetic . | . . . . Impact . | . . . . Slashing . | . . . . Piercing . | . . . . Highest Corruption . | . . . . Average Corruption . | . . . . Corruption Purged . | . . . . Corruption Blocked . | . . . . Overload Shots . | . . . . Overflow Damage 93 | . 76 17 . Projectiles . | . . . . Explosions 93 | . 76 17 . Melee . | . . . . Knockbacks . | . . . . Impact . | . . . . Kinetic . | . . . . Secondary . | . . . . Self-Inflicted Damage 88 | . 20 68 . Shots 3 | . 1 2 . Rammed 1 | . . 1 . Targets Rammed 2 | . 1 1 . Kicked . | . . . . Crushed 1 | . 1 . . Highest Temperature 10 | . . 10 . Average Temperature 7 | . . 7 . Received Heat Transfer 171 | . . . 171 Siege Activations . | . . . . Martial Activations . | . . . . Shielding Activations . | . . . . Robots Disrupted . | . . . . Combat Hostiles . | . . . . Robots Corrupted . | . . . . Combat Hostiles . | . . . . Parts Fried . | . . . . Impact Corruptions . | . . . . Robots Melted . | . . . . Combat Hostiles . | . . . . Parts Melted 1 | . . . 1 Heat Transferred 74 | . . . 74 Parts Sabotaged . | . . . . Parts Stolen . | . . . . Parts Stripped . | . . . . Power Chain Reactions . | . . . . Alert | -11 -10 -10 -10 ------- Run | Yrd Mat Min Sub Maximum Alert Level 1 | . 1 . . Low Security (%) 94 | 100 91 100 . Level 1 5 | . 8 . . Level 2 . | . . . . Level 3 . | . . . . Level 4 . | . . . . Level 5 . | . . . . High Security . | . . . . Max Security . | . . . . Peak Influence 223 | . 223 199 . Initial 77 | . . 77 . Average 101 | . 115 162 . Influence Increases 663 | 5 396 172 90 Destroy 0b10 Robot/C 380 | . 280 100 . Destroy 0b10 Robot/NC 25 | 5 20 . . Destroy Leader 76 | . 56 20 . Successful Hack 5 | . 5 . . Destroy Structure 57 | . 35 22 . Lose Combat Pursuer 120 | . . 30 90 Influence Decreases 663 | 5 197 212 249 Entered New Map 205 | . . 122 83 Time Decay 438 | 5 197 70 166 Lost Part 20 | . . 20 . Squads Dispatched 1 | . 1 . . Investigation . | . . . . Extermination . | . . . . Reinforcement 1 | . 1 . . Assault . | . . . . Garrison . | . . . . Intercept . | . . . . Searches Triggered . | . . . . Construction Impeded . | . . . . Haulers Reinforced . | . . . . Active Scanning Responses . | . . . . Cargo Convoy Interrupts . | . . . . Stealth | -11 -10 -10 -10 --------- Run | Yrd Mat Min Sub Distress Signals 2 | . 2 . . Communications Jammed . | . . . . Distress Signals . | . . . . Times Spotted 37 | . 22 7 8 Peak Tracking Total 6 | . 6 4 4 Tactical Retreats 4 | . . 2 2 Traps | -11 -10 -10 -10 ------- Run | Yrd Mat Min Sub Traps Triggered 2 | . . . 2 Indirectly . | . . . . Trap Hack Attempts . | . . . . Triggered . | . . . . Disarmed . | . . . . Reprogrammed . | . . . . Reused . | . . . . Traps Extracted . | . . . . Installed . | . . . . Triggered . | . . . . Most Traps Carried 1 | . . . 1 Machines | -11 -10 -10 -10 ---------- Run | Yrd Mat Min Sub Machines Disabled . | . . . . Max in Single Turn . | . . . . Machines Repaired . | . . . . Machines Dismantled . | . . . . Machines Sabotaged . | . . . . Overloaded Fab Kills . | . . . . Hacking | -11 -10 -10 -10 --------- Run | Yrd Mat Min Sub Machines Accessed 6 | . 5 . 1 Terminals 5 | . 5 . . Fabricators . | . . . . Repair Stations . | . . . . Recycling Units . | . . . . Scanalyzers . | . . . . Garrison Access . | . . . . Total Hacks 17 | . 14 . 3 Successful 6 | . 3 . 3 Failed 11 | . 11 . . Catastrophic 2 | . 2 . . Database Lockouts . | . . . . Manual 7 | . 7 . . Terminals 14 | . 14 . . Fabricators . | . . . . Repair Stations . | . . . . Recycling Units . | . . . . Scanalyzers . | . . . . Garrison Access . | . . . . Terminal Hacks 5 | . 2 . 3 Record 3 | . . . 3 Prototype ID Bank 1 | . 1 . . Locate Traps 1 | . 1 . . Fabricator Hacks . | . . . . Repair Station Hacks . | . . . . Recycling Unit Hacks . | . . . . Scanalyzer . | . . . . Garrison Access Hacks . | . . . . Unauthorized Hacks 1 | . 1 . . Terminals 1 | . 1 . . Track 1 | . 1 . . Fabricators . | . . . . Repair Stations . | . . . . Recycling Units . | . . . . Scanalyzers . | . . . . Garrison Access . | . . . . Data Cores Recovered . | . . . . Used . | . . . . Hacking Detections 5 | . 5 . . Full Trace Events 1 | . 1 . . Feedback Events . | . . . . Feedback Blocked . | . . . . Robot Schematics Acquired . | . . . . Robots Built . | . . . . Authchips . | . . . . Time . | . . . . Total Robot Build Rating . | . . . . Part Schematics Acquired . | . . . . Parts Built . | . . . . Authchips . | . . . . Time . | . . . . Total Part Build Rating . | . . . . Part Studies Acquired . | . . . . Parts Repaired . | . . . . Time . | . . . . Parts Recycled . | . . . . Recycled Matter . | . . . . Retrieved Matter . | . . . . Retrieved Components . | . . . . Parts Scanalyzed . | . . . . Part Schematics Acquired . | . . . . Parts Damaged . | . . . . Bothacking | -11 -10 -10 -10 ------------ Run | Yrd Mat Min Sub Used RIF Installer . | . . . . Robots Hacked . | . . . . Non-combat . | . . . . Combat . | . . . . Robot Hacks Applied . | . . . . Relay Couplers Released . | . . . . Fabnet Peak Effective % . | . . . . Robots Rewired . | . . . . Allies Hacked . | . . . . Hacks Repelled . | . . . . Allies | -11 -10 -10 -10 -------- Run | Yrd Mat Min Sub Total Allies . | . . . . Largest Group . | . . . . Highest-Rated Group . | . . . . Highest-Rated Ally . | . . . . Total Orders . | . . . . Ally Attacks . | . . . . Total Damage . | . . . . Kills . | . . . . Allies Corrupted . | . . . . Allies Melted . | . . . . Intel | -11 -10 -10 -10 ------- Run | Yrd Mat Min Sub Active Infowar (turns) . | . . . . Robot Analysis Total . | . . . . Derelict Logs Recovered 1 | . . 1 . Drone Launches . | . . . . Drone Recoveries . | . . . . Exploration | -11 -10 -10 -10 ------------- Run | Yrd Mat Min Sub Turns Passed 2351 | 167 579 146 1459 Spaces Moved 1315 | 93 258 79 885 Core 11 | 11 . . . Treads 625 | 82 258 79 206 Legs . | . . . . Wheels 679 | . . . 679 Hover . | . . . . Flight . | . . . . Fastest Speed 50 | 50 160 160 117 Average Speed 152 | 149 173 161 145 Slowest Speed 240 | 160 240 240 240 Overloaded Moves . | . . . . Propulsion Burnouts . | . . . . Robots Hopped . | . . . . Potential Cave-ins 1 | . . . 1 Cave-ins Triggered . | . . . . Exploration Rate (%) 24 | 5 44 12 38 Regions Visited 3 Branch Regions 2 Pre-discovered Areas . | . . . . Known Exits Taken . | . . . . Unknown Exits Taken 3 | 1 1 1 . Scrap Searched . | . . . . Spaces Dug . | . . . . Terrain Destroyed 65 | . 38 26 1 Melee . | . . . . Projectile 1 | . . . 1 AOE 64 | . 38 26 . Terrain Rammed . | . . . . Walls Destroyed . | . . . . Machines Disabled . | . . . . Actions | -11 -10 -10 -10 --------- Run | Yrd Mat Min Sub Total 1511 | 109 338 92 972 Wait 31 | . 24 1 6 Move 1312 | 92 257 78 885 Hop . | . . . . Pick Up 31 | 4 10 4 13 Fast Attach 7 | 6 1 . . Attach 8 | . . 2 6 Detach 1 | . . . 1 Swap 16 | . 9 3 4 Drop 12 | 1 4 . 7 Fire 91 | 6 32 3 50 Melee . | . . . . Ram . | . . . . Kick . | . . . . Crush 2 | . 1 1 . Escape Stasis . | . . . . Rewire . | . . . . Trap . | . . . . Miscellaneous . | . . . . Route ------- -11/Scrapyard -10/Materials (discovered 2 exits: [*Mat] / [*Min]) -10/Mines -10/Subcaves (discovered 1 exit: [*Mat]) History --------- Turn | Location | Event 21 | -11/Scrapyard | Discovered new exit (range 15) 168 | -11/Scrapyard | Entered Materials 281 | -10/Materials | Discovered new exit (range 16) 301 | -10/Materials | Build established: Mutant 433 | -10/Materials | Discovered new exit (range 13) 747 | -10/Materials | Entered Mines 771 | -10/Mines | Learned location of 1 exit from Materials 845 | -10/Mines | Assembled infested the area 872 | -10/Mines | Discovered new exit (range 14) 893 | -10/Mines | Entered Subcaves 894 | -10/Subcaves | Approached by a straggling Scientist 895 | -10/Subcaves | Shifting Twisted Machinery released Mak. Light Armor Plating 1028 | -10/Subcaves | Ambushed by Subdweller buried in earth 1086 | -10/Subcaves | Core integrity fell below 50% 1142 | -10/Subcaves | Shifting Twisted Machinery released Sub. Monowheel 1196 | -10/Subcaves | Discovered new exit (range 9) 1319 | -10/Subcaves | Shifting Twisted Machinery released Sub. Beam Cannon 1364 | -10/Subcaves | Shifting Twisted Machinery released Shrapnel Trap 1687 | -10/Subcaves | A swath of the cavern ceiling suddenly collapsed 1866 | -10/Subcaves | Visited Clippyterm 1870 | -10/Subcaves | Learned Factory fabricator intel 2342 | -10/Subcaves | Core integrity fell below 20% 2352 | -10/Subcaves | Destroyed by R9-EYN(R) with Subdweller Shrapnel Launcher Last Messages --------------- 02278_ N3-AVD(R) destroyed. 02281_ 1R-2SC(R) affixes Scrap Shield Fragment to Scrap Shield. 02289_ 1R-2SC(R) destroyed. 02302_ Dropped Broken Sub. Monowheel. 02304_ Dropped Lgt. Treads. 02304_ Acquired Broken Sub. Monowheel. 02305_ Acquired 39 matter. 02308_ Acquired 23 matter. 02315_ Acquired 3 matter. Z4-BEZ(c): "We're getting close, I can feel it." 02328_ Subatomizers dissect the Lgt. Treads. 02330_ Acquired 5 matter. R9-EYN(R) emerges from concealment. 02337_ Com. Wheel destroyed. 02340_ Lgt. Ion Engine destroyed. 02341_ Z4-BEZ(c) destroyed. 02342_ Subatomizers dissect the Lgt. Treads. 02342_ Discarded Imp. Targeting Computer. 02343_ Lgt. Assault Rifle destroyed. 02349_ KV-68V(R) destroyed. Map ----- +----------------------------------------------------+ | ?????????????????????????????????????????????????? | | ?????????????????????????????????????????????????? | | ?????????????????????????????????????????????????? | | ?????????????????????????????????????????????????? | | ?????????????????????????????????????????????????? | | ?????????????????????????????????????????????????? | | ?????????????????????????????????????????????????? | | ?????????????????????????????????????????????????? | | ?????????????????????????????????????????????????? | | ?????????????????????????????????????????????????? | | ?????????????????????????????????????????????????? | | ?????????????????????????????????????????????????? | | ?????????????????????????????????????????????????? | | ?????????????????????????????###?## #????????????? | | ????????????????##?????????## ## ##???????????? | | ?????????????? ## ????????;; #???????????? | | ????????????? ???????; #???????????? | | ????????????? ??????? #???????????? | | ???????????? ????##; ##??????????? | | ???????????? ??## ; #??????????? | | ?????????????# ### #???????????? | | ??????????????# ; #???????????? | | ??????????????? ; ; #????????????? | | ???????????????????# ! ; #?????????????? | | ??????????????# %### ; #?????????????? | | ???????????????? #%; @ ; #?????????????? | | ???????????# % ; #?????????????? | | ???????????# # % R ;; #?????????????? | | ??????????????# ### ;# ##?????????????? | | ???????????? #????# *=##????????????????? | | ????????????????????## # ## ##???????????????? | | ?????????????????????# ?###& #???????????????? | | ?????????????????????# #### #???????????????? | | ????????????????????? ## #####???????????? | | ???????????????????? ?## #???????????? | | ???????????????????# ??## #???????????? | | ???????????????????## ???### ##???????????? | | ????????????????????# ?????# "##????????????# | | ????????????????????### ????## " ######????#####?# | | ??????????????????????#????## "" ##"##??##"""### | | ???????????????????????????# "" ""#?##[ ## | | ???????????????????????????# "" ### ! # | | ???????????????????????????# ### #" [ | | ???????????????????????????## ##?#####""### | | ????????????????????????????####??????####?## ## | | ????????????????????????????????????????????#####? | | ?????????????????????????????????????????????????? | | ?????????????????????????????????????????????????? | | ?????????????????????????????????????????????????? | | ?????????????????????????????????????????????????? | +----------------------------------------------------+ Best States ------------- Heat Dissipation 25 Energy Generation 10 Energy Capacity 250 Matter Stores 300 Matter Capacity 300 Sight Range 16 Terrain Scan Density 10 Armor Coverage 100 Evasion (%) 40 Targeting Accuracy 6 Recoil Reduction 2 Item Schematics ----------------- None Robot Schematics ------------------ None Fabricated ------------ Nothing Repaired ---------- Nothing Studied --------- None Alien Tech Used ----------------- None Achievements -------------- Do Not Disturb Challenges ------------ None Game ------ Seed StormGlidesysBiocell Manual? 0 Play Time 00:21:07 Cumulative 125.4 hours Start 2026.04.01 @ 10:46:19 End 2026.04.01 @ 11:06:57 Sessions 1 Manual Loads 0 Difficulty Rogue Special Mode None Game No. 119 Rogue 74 Adventurer 45 Explorer 0 Win Type - Total 3 Types 2/0/0/1/0/0/0/0/0/0 Lore% 68 Gallery% 57 Achievement% 42 Wizard Run 0 Options --------- Layout 0 ASCII 0 Keyboard 1 Movement Numpad Keybinds 0 Fullscreen 1 Font 24/Smallcaps Map View 76x50 Zoom Use 0% Tactical HUD 1 Map Filters NONE Filters NONE Steam 1 RUN: f6ac9cbc-e3f5-4436-9da1-4d6bf4be4ab5